[Event "*** SCC Grand Prix: Titled Tuesday Blitz"]
[Site "Chess.com"]
[Date "2020.07.14"]
[Round "1"]
[White "AldokhinIvan"]
[Black "Olga_Zhuravleva"]
[Result "0-1"]
[WhiteElo "2581"]
[BlackElo "2308"]
[TimeControl "180+1"]
[EndTime "10:08:29 PDT"]
[Termination "Olga_Zhuravleva won by checkmate"]

1. e4 {[%clk 0:03:00.9]} 1... e5 {[%clk 0:02:58.4]} 2. Nf3 {[%clk 0:03:00.3]}
2... Nc6 {[%clk 0:02:56]} 3. Bb5 {[%clk 0:03:00.9]} 3... f5 {[%clk 0:02:54.4]}
4. d3 {[%clk 0:02:59.8]} 4... Nf6 {[%clk 0:02:53.1]} 5. O-O {[%clk 0:02:56.4]}
5... Bc5 {[%clk 0:02:51.4]} 6. exf5 {[%clk 0:02:36.6]} 6... O-O {[%clk
0:02:50.5]} 7. c3 {[%clk 0:02:34.6]} 7... Bb6 {[%clk 0:02:40.5]} 8. d4 {[%clk
0:02:33.4]} 8... e4 {[%clk 0:02:38.2]} 9. Ne5 {[%clk 0:02:28.4]} 9... a6 {[%clk
0:02:33.8]} 10. Ba4 {[%clk 0:02:22.2]} 10... Qe8 {[%clk 0:02:27.4]} 11. Nc4
{[%clk 0:01:56]} 11... Ba7 {[%clk 0:02:25.8]} 12. Bf4 {[%clk 0:01:46.5]} 12...
b5 {[%clk 0:02:23.2]} 13. d5 {[%clk 0:01:36.6]} 13... Nb8 {[%clk 0:02:09.3]} 14.
Bxb5 {[%clk 0:01:23.1]} 14... axb5 {[%clk 0:02:08.8]} 15. Nca3 {[%clk
0:01:23.8]} 15... d6 {[%clk 0:02:04.1]} 16. Qe2 {[%clk 0:01:23.4]} 16... Ba6
{[%clk 0:01:58.3]} 17. Rd1 {[%clk 0:01:15.5]} 17... h6 {[%clk 0:01:42.4]} 18.
Nd2 {[%clk 0:01:09]} 18... Nxd5 {[%clk 0:01:34.9]} 19. Bg3 {[%clk 0:01:07]}
19... Nf6 {[%clk 0:01:32]} 20. Nb3 {[%clk 0:01:03.3]} 20... b4 {[%clk
0:01:28.8]} 21. Nc4 {[%clk 0:00:47.7]} 21... d5 {[%clk 0:01:27.6]} 22. Nba5
{[%clk 0:00:43.5]} 22... dxc4 {[%clk 0:01:23.7]} 23. Nxc4 {[%clk 0:00:43.6]}
23... bxc3 {[%clk 0:01:17.1]} 24. b3 {[%clk 0:00:39.2]} 24... Qc6 {[%clk
0:01:07.9]} 25. Rac1 {[%clk 0:00:37.3]} 25... Bxc4 {[%clk 0:01:03.5]} 26. bxc4
{[%clk 0:00:37.3]} 26... Bb6 {[%clk 0:00:58.8]} 27. Rxc3 {[%clk 0:00:36]} 27...
Nbd7 {[%clk 0:00:58.6]} 28. c5 {[%clk 0:00:28.4]} 28... Nxc5 {[%clk 0:00:53.9]}
29. Rdc1 {[%clk 0:00:28]} 29... Rfd8 {[%clk 0:00:47.8]} 30. Qc4+ {[%clk
0:00:25.1]} 30... Kh8 {[%clk 0:00:45.4]} 31. Qf7 {[%clk 0:00:24.2]} 31... Rd7
{[%clk 0:00:38.1]} 32. Qg6 {[%clk 0:00:22.5]} 32... Rad8 {[%clk 0:00:36.9]} 33.
h3 {[%clk 0:00:19.9]} 33... Rd1+ {[%clk 0:00:35.9]} 34. Kh2 {[%clk 0:00:19.9]}
34... Rxc1 {[%clk 0:00:35.5]} 35. Rxc1 {[%clk 0:00:20.2]} 35... Qe8 {[%clk
0:00:34.7]} 36. a3 {[%clk 0:00:15.2]} 36... Qxg6 {[%clk 0:00:33.8]} 37. fxg6
{[%clk 0:00:16.1]} 37... Ra8 {[%clk 0:00:32.5]} 38. Rc3 {[%clk 0:00:16]} 38...
Nd5 {[%clk 0:00:32.2]} 39. Rc4 {[%clk 0:00:13.8]} 39... Rxa3 {[%clk 0:00:31]}
40. Rd4 {[%clk 0:00:14.3]} 40... c6 {[%clk 0:00:30.6]} 41. Rc4 {[%clk
0:00:14.6]} 41... Kg8 {[%clk 0:00:30.6]} 42. Rc1 {[%clk 0:00:14.8]} 42... Ra2
{[%clk 0:00:30.7]} 43. Bd6 {[%clk 0:00:14.8]} 43... Ra5 {[%clk 0:00:28]} 44. Rb1
{[%clk 0:00:13.7]} 44... Ra8 {[%clk 0:00:23.9]} 45. Rc1 {[%clk 0:00:13.4]} 45...
Bc7 {[%clk 0:00:20.2]} 46. Bxc7 {[%clk 0:00:12.9]} 46... Nxc7 {[%clk 0:00:20.9]}
47. Rxc5 {[%clk 0:00:13.5]} 47... Ra6 {[%clk 0:00:21.3]} 48. Rc4 {[%clk
0:00:13.8]} 48... Kf8 {[%clk 0:00:20.6]} 49. Rxe4 {[%clk 0:00:14.4]} 49... Nd5
{[%clk 0:00:21.2]} 50. Re5 {[%clk 0:00:14.5]} 50... Ne7 {[%clk 0:00:20.9]} 51.
Re6 {[%clk 0:00:13.9]} 51... Ke8 {[%clk 0:00:20.4]} 52. Rd6 {[%clk 0:00:14]}
52... Nf5 {[%clk 0:00:19.8]} 53. Re6+ {[%clk 0:00:12.8]} 53... Kd7 {[%clk
0:00:20.3]} 54. Re5 {[%clk 0:00:13.2]} 54... Ne7 {[%clk 0:00:20.4]} 55. Re3
{[%clk 0:00:11.7]} 55... Nxg6 {[%clk 0:00:20.8]} 56. Rg3 {[%clk 0:00:11.9]}
56... c5 {[%clk 0:00:21.1]} 57. Rc3 {[%clk 0:00:12.4]} 57... Rc6 {[%clk
0:00:21.3]} 58. Kg3 {[%clk 0:00:13.3]} 58... Kd6 {[%clk 0:00:21.6]} 59. f4
{[%clk 0:00:13.8]} 59... Ne7 {[%clk 0:00:22.1]} 60. Kf3 {[%clk 0:00:14]} 60...
Nd5 {[%clk 0:00:22.6]} 61. Rc4 {[%clk 0:00:14.5]} 61... Rb6 {[%clk 0:00:22.2]}
62. f5 {[%clk 0:00:11.6]} 62... Rb4 {[%clk 0:00:22.3]} 63. Rc1 {[%clk
0:00:12.1]} 63... Rb3+ {[%clk 0:00:22.4]} 64. Kg4 {[%clk 0:00:10.9]} 64... Nf6+
{[%clk 0:00:22.6]} 65. Kf4 {[%clk 0:00:10.8]} 65... Rb4+ {[%clk 0:00:22.9]} 66.
Ke3 {[%clk 0:00:11.1]} 66... Kd5 {[%clk 0:00:23]} 67. g4 {[%clk 0:00:10.8]}
67... Rb3+ {[%clk 0:00:21.9]} 68. Kf4 {[%clk 0:00:09.7]} 68... Kd4 {[%clk
0:00:22]} 69. h4 {[%clk 0:00:08.1]} 69... Nd5# {[%clk 0:00:21.2]} 0-1

[Event "*** SCC Grand Prix: Titled Tuesday Blitz"]
[Site "Chess.com"]
[Date "2020.07.14"]
[Round "1"]
[White "VladaSviridova"]
[Black "benko_008"]
[Result "0-1"]
[WhiteElo "2103"]
[BlackElo "2489"]
[TimeControl "180+1"]
[EndTime "10:08:29 PDT"]
[Termination "benko_008 won by resignation"]

1. d4 {[%clk 0:02:58.3]} 1... d5 {[%clk 0:02:58.6]} 2. c4 {[%clk 0:02:58.3]}
2... e6 {[%clk 0:02:58.1]} 3. Nf3 {[%clk 0:02:58.6]} 3... Nf6 {[%clk 0:02:57.2]}
4. Nc3 {[%clk 0:02:58.7]} 4... Nbd7 {[%clk 0:02:54.9]} 5. Bf4 {[%clk 0:02:57.7]}
5... dxc4 {[%clk 0:02:42.1]} 6. e3 {[%clk 0:02:57.7]} 6... b5 {[%clk 0:02:37.4]}
7. Nxb5 {[%clk 0:02:56.3]} 7... Bb4+ {[%clk 0:02:36.4]} 8. Nc3 {[%clk
0:02:48.1]} 8... Nd5 {[%clk 0:02:22.5]} 9. Rc1 {[%clk 0:02:34.8]} 9... Nxf4
{[%clk 0:02:17.4]} 10. exf4 {[%clk 0:02:34.8]} 10... Nb6 {[%clk 0:02:06.2]} 11.
Bxc4 {[%clk 0:02:22.7]} 11... O-O {[%clk 0:01:51.9]} 12. Bb3 {[%clk 0:02:06.4]}
12... Bb7 {[%clk 0:01:51.1]} 13. O-O {[%clk 0:02:03.5]} 13... Bxf3 {[%clk
0:01:49]} 14. Qxf3 {[%clk 0:02:03.2]} 14... Qxd4 {[%clk 0:01:34.4]} 15. Rfd1
{[%clk 0:01:50.6]} 15... Qc5 {[%clk 0:01:33.8]} 16. Nd5 {[%clk 0:01:29.3]} 16...
Qa5 {[%clk 0:01:32]} 17. Nxb4 {[%clk 0:01:12.6]} 17... Qxb4 {[%clk 0:01:30.3]}
18. Rxc7 {[%clk 0:01:09.1]} 18... g6 {[%clk 0:01:10]} 19. g3 {[%clk 0:01:05.9]}
19... a5 {[%clk 0:01:04.6]} 20. a3 {[%clk 0:00:56.1]} 20... Qb5 {[%clk
0:01:04.1]} 21. Rb7 {[%clk 0:00:36.9]} 21... Rab8 {[%clk 0:00:56.4]} 22. Rxb8
{[%clk 0:00:36.6]} 22... Rxb8 {[%clk 0:00:55.5]} 23. Qd3 {[%clk 0:00:34]} 23...
Qe8 {[%clk 0:00:47.7]} 24. h4 {[%clk 0:00:31.9]} 24... a4 {[%clk 0:00:44.8]} 25.
Bc2 {[%clk 0:00:30]} 25... Nd5 {[%clk 0:00:42.2]} 26. Qd4 {[%clk 0:00:27.7]}
26... Qb5 {[%clk 0:00:33.6]} 27. Bxa4 {[%clk 0:00:27]} 27... Qxb2 {[%clk
0:00:33.6]} 28. Qxb2 {[%clk 0:00:27]} 28... Rxb2 {[%clk 0:00:34.5]} 29. Bc6
{[%clk 0:00:24.9]} 29... Nc3 {[%clk 0:00:32.5]} 30. Rd8+ {[%clk 0:00:22.7]}
30... Kg7 {[%clk 0:00:32.7]} 31. a4 {[%clk 0:00:20.7]} 31... Ra2 {[%clk
0:00:32.8]} 32. Ra8 {[%clk 0:00:20]} 32... Nd1 {[%clk 0:00:32.1]} 33. Bf3 {[%clk
0:00:17.9]} 33... Nxf2 {[%clk 0:00:30.1]} 34. Kf1 {[%clk 0:00:16.2]} 34... Nd3
{[%clk 0:00:29.3]} 35. Be4 {[%clk 0:00:15.6]} 35... Nc5 {[%clk 0:00:28.4]} 36.
Bc6 {[%clk 0:00:15.6]} 36... Nb3 {[%clk 0:00:23.6]} 37. a5 {[%clk 0:00:14.9]}
37... Rxa5 {[%clk 0:00:21.6]} 38. Rxa5 {[%clk 0:00:13.8]} 38... Nxa5 {[%clk
0:00:22.5]} 39. Be4 {[%clk 0:00:13]} 39... Nc4 {[%clk 0:00:21.5]} 40. Kf2 {[%clk
0:00:12.3]} 40... h5 {[%clk 0:00:20.7]} 41. Bd3 {[%clk 0:00:11.7]} 41... Nd6
{[%clk 0:00:20.1]} 42. Ke3 {[%clk 0:00:10.5]} 42... Nf5+ {[%clk 0:00:20.4]} 43.
Kf3 {[%clk 0:00:08]} 43... Kf6 {[%clk 0:00:19.5]} 44. Bb1 {[%clk 0:00:06.7]}
44... Nh6 {[%clk 0:00:19.5]} 45. Be4 {[%clk 0:00:05.8]} 45... Ng4 {[%clk
0:00:19.9]} 46. Bb1 {[%clk 0:00:05.2]} 46... Ke7 {[%clk 0:00:20.1]} 47. Be4
{[%clk 0:00:03.1]} 47... Nf6 {[%clk 0:00:20.6]} 48. Ba8 {[%clk 0:00:02.8]} 48...
Kd6 {[%clk 0:00:20.5]} 49. Bb7 {[%clk 0:00:02.2]} 49... Nd5 {[%clk 0:00:19.2]}
50. Ba6 {[%clk 0:00:01.4]} 50... Kc5 {[%clk 0:00:18.7]} 51. Bd3 {[%clk
0:00:01.8]} 51... Kd4 {[%clk 0:00:18.9]} 52. Bb1 {[%clk 0:00:01.6]} 52... Nc3
{[%clk 0:00:17.8]} 53. Bc2 {[%clk 0:00:01.9]} 53... Kc4 {[%clk 0:00:16.6]} 54.
Bb3+ {[%clk 0:00:02.6]} 54... Kxb3 {[%clk 0:00:16]} 55. Ke3 {[%clk 0:00:02.7]}
55... Kc4 {[%clk 0:00:15.7]} 56. Kf3 {[%clk 0:00:02.6]} 56... Kd4 {[%clk
0:00:15.7]} 57. g4 {[%clk 0:00:03.1]} 57... hxg4+ {[%clk 0:00:14.8]} 58. Kxg4
{[%clk 0:00:03.6]} 58... f6 {[%clk 0:00:15.4]} 59. h5 {[%clk 0:00:03.8]} 59...
gxh5+ {[%clk 0:00:15.7]} 60. Kxh5 {[%clk 0:00:04.3]} 60... Ke4 {[%clk 0:00:16]}
61. Kg6 {[%clk 0:00:04.6]} 61... f5 {[%clk 0:00:16.3]} 62. Kf6 {[%clk
0:00:04.8]} 62... Nd5+ {[%clk 0:00:16.3]} 63. Kxe6 {[%clk 0:00:05.1]} 63...
Nxf4+ {[%clk 0:00:17.2]} 64. Kf6 {[%clk 0:00:05]} 64... Nd3 {[%clk 0:00:18.1]}
65. Kg5 {[%clk 0:00:05.4]} 65... f4 {[%clk 0:00:19]} 66. Kg4 {[%clk 0:00:05.9]}
66... f3 {[%clk 0:00:19.9]} 67. Kg3 {[%clk 0:00:06.3]} 67... Ke3 {[%clk
0:00:20.8]} 68. Kh2 {[%clk 0:00:06.7]} 68... f2 {[%clk 0:00:21.7]} 69. Kg2
{[%clk 0:00:07]} 69... Ke2 {[%clk 0:00:22.6]} 70. Kh2 {[%clk 0:00:07.3]} 70...
f1=Q {[%clk 0:00:23.5]} 0-1

[Event "*** SCC Grand Prix: Titled Tuesday Blitz"]
[Site "Chess.com"]
[Date "2020.07.14"]
[Round "1"]
[White "catalin009"]
[Black "Azatic"]
[Result "1/2-1/2"]
[WhiteElo "2318"]
[BlackElo "2613"]
[TimeControl "180+1"]
[EndTime "10:08:31 PDT"]
[Termination "Game drawn by repetition"]

1. e4 {[%clk 0:02:58.5]} 1... c5 {[%clk 0:02:58.8]} 2. Nf3 {[%clk 0:02:57.5]}
2... e6 {[%clk 0:02:59.1]} 3. d4 {[%clk 0:02:56.6]} 3... cxd4 {[%clk 0:03:00]}
4. Nxd4 {[%clk 0:02:57.5]} 4... a6 {[%clk 0:03:00]} 5. c4 {[%clk 0:02:56.5]}
5... Qc7 {[%clk 0:03:00.4]} 6. Nc3 {[%clk 0:02:56.9]} 6... Nf6 {[%clk
0:03:00.9]} 7. Be3 {[%clk 0:02:57.1]} 7... Be7 {[%clk 0:03:00.7]} 8. Be2 {[%clk
0:02:52.2]} 8... O-O {[%clk 0:03:00.9]} 9. O-O {[%clk 0:02:51.8]} 9... d6 {[%clk
0:03:00.6]} 10. Qd2 {[%clk 0:02:51.5]} 10... b6 {[%clk 0:03:00.4]} 11. Rfc1
{[%clk 0:02:49.5]} 11... Bb7 {[%clk 0:02:58.8]} 12. f3 {[%clk 0:02:48.8]} 12...
Nbd7 {[%clk 0:02:58.2]} 13. a4 {[%clk 0:02:19.3]} 13... Rfb8 {[%clk 0:02:57.8]}
14. a5 {[%clk 0:02:07.8]} 14... bxa5 {[%clk 0:02:58.7]} 15. Nb3 {[%clk
0:02:07.7]} 15... Bc8 {[%clk 0:02:58.5]} 16. Nxa5 {[%clk 0:02:07.7]} 16... Ne5
{[%clk 0:02:50]} 17. Bf1 {[%clk 0:01:37.4]} 17... Bd7 {[%clk 0:02:45.7]} 18. Ne2
{[%clk 0:01:27.7]} 18... Nc6 {[%clk 0:02:37.6]} 19. Nxc6 {[%clk 0:01:24.4]}
19... Bxc6 {[%clk 0:02:36]} 20. Kh1 {[%clk 0:01:17.2]} 20... h5 {[%clk
0:02:29.7]} 21. Bf4 {[%clk 0:01:15.8]} 21... Qd7 {[%clk 0:01:38.6]} 22. Rd1
{[%clk 0:01:01.5]} 22... e5 {[%clk 0:01:33.9]} 23. Bg5 {[%clk 0:00:59.6]} 23...
h4 {[%clk 0:01:20.2]} 24. Nc3 {[%clk 0:00:46]} 24... h3 {[%clk 0:01:16.2]} 25.
gxh3 {[%clk 0:00:36.6]} 25... Rd8 {[%clk 0:01:02.7]} 26. h4 {[%clk 0:00:35.6]}
26... Nh5 {[%clk 0:01:00.2]} 27. Ne2 {[%clk 0:00:21.6]} 27... Qe6 {[%clk
0:00:53.7]} 28. Ng3 {[%clk 0:00:20.8]} 28... Nxg3+ {[%clk 0:00:29.3]} 29. hxg3
{[%clk 0:00:20.9]} 29... Rab8 {[%clk 0:00:30.2]} 30. Bxe7 {[%clk 0:00:18.4]}
30... Qxe7 {[%clk 0:00:31.1]} 31. Ra3 {[%clk 0:00:17.6]} 31... Rb6 {[%clk
0:00:30]} 32. Rd3 {[%clk 0:00:16.7]} 32... Rdb8 {[%clk 0:00:29.5]} 33. Rxd6
{[%clk 0:00:16.9]} 33... Rxb2 {[%clk 0:00:28.3]} 34. Qg5 {[%clk 0:00:12.1]}
34... Qxg5 {[%clk 0:00:18.6]} 35. hxg5 {[%clk 0:00:13]} 35... Ba4 {[%clk
0:00:18.8]} 36. Ra1 {[%clk 0:00:10.3]} 36... Rb1 {[%clk 0:00:13.8]} 37. Rxa4
{[%clk 0:00:08.9]} 37... Rxf1+ {[%clk 0:00:13.2]} 38. Kg2 {[%clk 0:00:09.6]}
38... Rbb1 {[%clk 0:00:13.4]} 39. Raxa6 {[%clk 0:00:08.7]} 39... Rh1 {[%clk
0:00:12.4]} 40. g6 {[%clk 0:00:05.3]} 40... fxg6 {[%clk 0:00:12.1]} 41. Rxg6
{[%clk 0:00:04.7]} 41... Rbg1+ {[%clk 0:00:11.8]} 42. Kf2 {[%clk 0:00:05.2]}
42... Rf1+ {[%clk 0:00:11.5]} 43. Ke2 {[%clk 0:00:05.7]} 43... Rd1 {[%clk
0:00:11.6]} 44. Ra7 {[%clk 0:00:04.7]} 44... Rde1+ {[%clk 0:00:03.4]} 45. Kd2
{[%clk 0:00:04.7]} 45... Rd1+ {[%clk 0:00:04]} 46. Kc3 {[%clk 0:00:05.1]} 46...
Rb1 {[%clk 0:00:04.6]} 47. Rgxg7+ {[%clk 0:00:04.6]} 47... Kh8 {[%clk
0:00:04.9]} 48. Rge7 {[%clk 0:00:03.9]} 48... Rhc1+ {[%clk 0:00:05.2]} 49. Kd2
{[%clk 0:00:04.3]} 49... Rd1+ {[%clk 0:00:05.4]} 50. Ke2 {[%clk 0:00:04.9]}
50... Re1+ {[%clk 0:00:06]} 51. Kf2 {[%clk 0:00:05.5]} 51... Rf1+ {[%clk
0:00:06.2]} 52. Kg2 {[%clk 0:00:06]} 52... Rg1+ {[%clk 0:00:06.8]} 53. Kh3
{[%clk 0:00:06.5]} 53... Rh1+ {[%clk 0:00:07.4]} 54. Kg4 {[%clk 0:00:06.9]}
54... Rb8 {[%clk 0:00:08]} 55. Rad7 {[%clk 0:00:06.6]} 55... Rh6 {[%clk
0:00:07.4]} 56. f4 {[%clk 0:00:06.6]} 56... Rg8+ {[%clk 0:00:07.1]} 57. Kf3
{[%clk 0:00:06.3]} 57... Rh3 {[%clk 0:00:07.6]} 58. fxe5 {[%clk 0:00:06]} 58...
Rgxg3+ {[%clk 0:00:05.8]} 59. Kf4 {[%clk 0:00:06.4]} 59... Rf3+ {[%clk
0:00:06.1]} 60. Kg4 {[%clk 0:00:06.1]} 60... Rhg3+ {[%clk 0:00:06.7]} 61. Kh4
{[%clk 0:00:06.5]} 61... Rh3+ {[%clk 0:00:07.3]} 62. Kg5 {[%clk 0:00:06.9]}
62... Rhg3+ {[%clk 0:00:07.9]} 63. Kh5 {[%clk 0:00:07.1]} 63... Rh3+ {[%clk
0:00:08.5]} 64. Kg4 {[%clk 0:00:07.3]} 64... Rhg3+ {[%clk 0:00:09.2]} 65. Kh5
{[%clk 0:00:07.9]} 65... Rh3+ {[%clk 0:00:09.8]} 66. Kg6 {[%clk 0:00:08.8]}
66... Rhg3+ {[%clk 0:00:10.2]} 67. Kh5 {[%clk 0:00:09.2]} 1/2-1/2

[Event "*** SCC Grand Prix: Titled Tuesday Blitz"]
[Site "Chess.com"]
[Date "2020.07.14"]
[Round "1"]
[White "Susal_De_Silva"]
[Black "Bazarov04"]
[Result "0-1"]
[WhiteElo "2292"]
[BlackElo "2597"]
[TimeControl "180+1"]
[EndTime "10:08:33 PDT"]
[Termination "Bazarov04 won by resignation"]

1. e4 {[%clk 0:03:00.9]} 1... e6 {[%clk 0:02:59.7]} 2. d4 {[%clk 0:03:00.5]}
2... d5 {[%clk 0:02:59.8]} 3. Nc3 {[%clk 0:03:01.2]} 3... Nf6 {[%clk 0:02:59.6]}
4. e5 {[%clk 0:03:01.4]} 4... Nfd7 {[%clk 0:03:00]} 5. f4 {[%clk 0:03:01.9]}
5... c5 {[%clk 0:03:00.4]} 6. Nf3 {[%clk 0:03:02.3]} 6... Nc6 {[%clk 0:03:00.9]}
7. Be3 {[%clk 0:03:01.7]} 7... Qb6 {[%clk 0:03:01.3]} 8. Na4 {[%clk 0:03:01]}
8... Qa5+ {[%clk 0:03:01.6]} 9. c3 {[%clk 0:03:01.2]} 9... b6 {[%clk 0:03:02.1]}
10. a3 {[%clk 0:02:37.3]} 10... c4 {[%clk 0:02:59.9]} 11. b4 {[%clk 0:02:27.1]}
11... cxb3 {[%clk 0:02:59.2]} 12. Qxb3 {[%clk 0:02:27.3]} 12... Ba6 {[%clk
0:02:59.6]} 13. Bxa6 {[%clk 0:02:25.1]} 13... Qxa6 {[%clk 0:02:59.6]} 14. Nb2
{[%clk 0:02:24.8]} 14... Rc8 {[%clk 0:02:55.1]} 15. Rc1 {[%clk 0:02:20.5]} 15...
Qxa3 {[%clk 0:02:51.8]} 16. Qxa3 {[%clk 0:02:16.4]} 16... Bxa3 {[%clk
0:02:52.7]} 17. Rb1 {[%clk 0:02:17]} 17... Na5 {[%clk 0:02:42.5]} 18. Na4 {[%clk
0:02:11.5]} 18... O-O {[%clk 0:02:38.8]} 19. O-O {[%clk 0:02:09.9]} 19... Rc7
{[%clk 0:02:35.6]} 20. Ra1 {[%clk 0:01:56.8]} 20... Be7 {[%clk 0:02:35]} 21.
Rfb1 {[%clk 0:01:47.8]} 21... Rfc8 {[%clk 0:02:34]} 22. g4 {[%clk 0:01:45.3]}
22... h6 {[%clk 0:02:29.7]} 23. f5 {[%clk 0:01:43.6]} 23... Nf8 {[%clk
0:02:05.9]} 24. Nd2 {[%clk 0:01:35.9]} 24... f6 {[%clk 0:01:58.1]} 25. exf6
{[%clk 0:01:13.2]} 25... Bxf6 {[%clk 0:01:59]} 26. Nc5 {[%clk 0:01:06.7]} 26...
exf5 {[%clk 0:01:45.8]} 27. gxf5 {[%clk 0:01:05.8]} 27... Re7 {[%clk 0:01:41.6]}
28. Bf2 {[%clk 0:01:01.2]} 28... Re2 {[%clk 0:01:39]} 29. Ncb3 {[%clk
0:00:49.5]} 29... Rxc3 {[%clk 0:01:03.1]} 30. Kf1 {[%clk 0:00:42.7]} 30... Nxb3
{[%clk 0:01:02]} 31. Nxb3 {[%clk 0:00:42.9]} 31... Rcc2 {[%clk 0:00:59.7]} 32.
Bg3 {[%clk 0:00:39.4]} 32... a5 {[%clk 0:00:42.2]} 33. Nc1 {[%clk 0:00:37.7]}
33... Red2 {[%clk 0:00:41.8]} 34. Nb3 {[%clk 0:00:37.3]} 34... Rd3 {[%clk
0:00:41.4]} 35. Ra4 {[%clk 0:00:32.1]} 35... Rcc3 {[%clk 0:00:37.3]} 36. Na1
{[%clk 0:00:20]} 36... Bxd4 {[%clk 0:00:31.2]} 37. Re1 {[%clk 0:00:16.9]} 37...
Bc5 {[%clk 0:00:24.8]} 38. f6 {[%clk 0:00:14]} 38... gxf6 {[%clk 0:00:22.2]} 39.
Bh4 {[%clk 0:00:14.3]} 39... Kf7 {[%clk 0:00:19.6]} 40. Rf4 {[%clk 0:00:14.8]}
40... Rf3+ {[%clk 0:00:19.5]} 41. Rxf3 {[%clk 0:00:15.5]} 41... Rxf3+ {[%clk
0:00:20.4]} 42. Kg2 {[%clk 0:00:16.1]} 42... Rc3 {[%clk 0:00:20]} 43. Bg3 {[%clk
0:00:15.7]} 43... Nd7 {[%clk 0:00:20]} 44. Bf4 {[%clk 0:00:12]} 44... a4 {[%clk
0:00:19.6]} 45. Bxh6 {[%clk 0:00:12.2]} 45... a3 {[%clk 0:00:19.7]} 46. Bd2
{[%clk 0:00:12.3]} 46... Rd3 {[%clk 0:00:18.3]} 47. Re2 {[%clk 0:00:12.2]} 47...
b5 {[%clk 0:00:17.6]} 48. h4 {[%clk 0:00:11.8]} 48... Ne5 {[%clk 0:00:17.6]} 49.
h5 {[%clk 0:00:11.2]} 49... b4 {[%clk 0:00:17.4]} 50. h6 {[%clk 0:00:11.4]}
50... Kg6 {[%clk 0:00:17.6]} 51. Kf1 {[%clk 0:00:09.8]} 51... b3 {[%clk
0:00:17.4]} 52. Rg2+ {[%clk 0:00:09.8]} 52... Kf7 {[%clk 0:00:14.8]} 53. h7
{[%clk 0:00:08.4]} 53... Rh3 {[%clk 0:00:14.4]} 54. Nxb3 {[%clk 0:00:05.2]}
54... Be7 {[%clk 0:00:13.3]} 55. Nd4 {[%clk 0:00:05.3]} 55... a2 {[%clk
0:00:13.1]} 56. Bc3 {[%clk 0:00:05.1]} 56... Rxc3 {[%clk 0:00:12.7]} 57. Rxa2
{[%clk 0:00:03.8]} 57... Rh3 {[%clk 0:00:12.2]} 58. Ra7 {[%clk 0:00:02]} 58...
Rxh7 {[%clk 0:00:12.3]} 59. Nf5 {[%clk 0:00:02.8]} 59... Ke6 {[%clk 0:00:12.4]}
60. Nxe7 {[%clk 0:00:03.3]} 60... Rxe7 {[%clk 0:00:12.3]} 0-1

[Event "*** SCC Grand Prix: Titled Tuesday Blitz"]
[Site "Chess.com"]
[Date "2020.07.14"]
[Round "1"]
[White "TurboSteen"]
[Black "StockholmMissile"]
[Result "0-1"]
[WhiteElo "1938"]
[BlackElo "2460"]
[TimeControl "180+1"]
[EndTime "10:08:34 PDT"]
[Termination "StockholmMissile won on time"]

1. e4 {[%clk 0:02:57.6]} 1... e5 {[%clk 0:02:58.7]} 2. Nf3 {[%clk 0:02:55.9]}
2... Nc6 {[%clk 0:02:56.8]} 3. Bb5 {[%clk 0:02:55.4]} 3... a6 {[%clk 0:02:54.5]}
4. Ba4 {[%clk 0:02:54]} 4... Nf6 {[%clk 0:02:53.8]} 5. O-O {[%clk 0:02:50.2]}
5... Be7 {[%clk 0:02:52.2]} 6. Re1 {[%clk 0:02:48.7]} 6... b5 {[%clk 0:02:51.2]}
7. Bb3 {[%clk 0:02:46.9]} 7... d6 {[%clk 0:02:51.2]} 8. c3 {[%clk 0:02:45.2]}
8... O-O {[%clk 0:02:47]} 9. d4 {[%clk 0:02:45]} 9... Bg4 {[%clk 0:02:41.2]} 10.
d5 {[%clk 0:02:43.7]} 10... Nb8 {[%clk 0:02:39.4]} 11. h3 {[%clk 0:02:40.4]}
11... Bh5 {[%clk 0:02:38.6]} 12. Nbd2 {[%clk 0:02:38.2]} 12... Nbd7 {[%clk
0:02:33.9]} 13. Nf1 {[%clk 0:02:36.8]} 13... Bg6 {[%clk 0:02:32.3]} 14. Ng3
{[%clk 0:02:35.9]} 14... Nh5 {[%clk 0:02:32]} 15. Nxe5 {[%clk 0:02:21.3]} 15...
Nxg3 {[%clk 0:02:05.3]} 16. Nc6 {[%clk 0:02:19.4]} 16... Qe8 {[%clk 0:02:04.1]}
17. fxg3 {[%clk 0:02:18.1]} 17... Bf6 {[%clk 0:02:02.3]} 18. Bc2 {[%clk
0:02:13.3]} 18... Ne5 {[%clk 0:02:01.2]} 19. Nxe5 {[%clk 0:02:09.5]} 19... Bxe5
{[%clk 0:02:02.1]} 20. Bf4 {[%clk 0:02:08]} 20... Qe7 {[%clk 0:02:01.1]} 21. Qg4
{[%clk 0:02:03.5]} 21... Rfe8 {[%clk 0:01:53.6]} 22. h4 {[%clk 0:02:00.6]} 22...
h5 {[%clk 0:01:41.9]} 23. Qf3 {[%clk 0:01:55]} 23... Bxf4 {[%clk 0:01:40.4]} 24.
gxf4 {[%clk 0:01:52.7]} 24... Qxh4 {[%clk 0:01:39.5]} 25. f5 {[%clk 0:01:51.3]}
25... Bh7 {[%clk 0:01:39.1]} 26. Rf1 {[%clk 0:01:39.1]} 26... f6 {[%clk
0:01:30.4]} 27. Rae1 {[%clk 0:01:34.1]} 27... Re7 {[%clk 0:01:28.2]} 28. Re3
{[%clk 0:01:33]} 28... Qg5 {[%clk 0:01:21.2]} 29. Qf2 {[%clk 0:01:29.7]} 29...
Bxf5 {[%clk 0:01:07.1]} 30. Rg3 {[%clk 0:01:15.8]} 30... Bg4 {[%clk 0:01:01]}
31. Re1 {[%clk 0:01:04.6]} 31... Rae8 {[%clk 0:00:58.1]} 32. a4 {[%clk
0:01:00.8]} 32... Rb8 {[%clk 0:00:54.5]} 33. axb5 {[%clk 0:00:58.8]} 33... axb5
{[%clk 0:00:55.4]} 34. Ree3 {[%clk 0:00:49.7]} 34... b4 {[%clk 0:00:53.3]} 35.
c4 {[%clk 0:00:47.4]} 35... h4 {[%clk 0:00:42.9]} 36. Rxg4 {[%clk 0:00:41.8]}
36... Qxg4 {[%clk 0:00:42.7]} 37. Rh3 {[%clk 0:00:40.8]} 37... b3 {[%clk
0:00:36.3]} 38. Bd3 {[%clk 0:00:37.5]} 38... Qd1+ {[%clk 0:00:32.9]} 39. Kh2
{[%clk 0:00:35.6]} 39... Re5 {[%clk 0:00:12.2]} 40. Qxh4 {[%clk 0:00:33.4]}
40... Rbe8 {[%clk 0:00:12.3]} 41. Qh7+ {[%clk 0:00:28.1]} 41... Kf7 {[%clk
0:00:12.4]} 42. Rg3 {[%clk 0:00:27.6]} 42... Rg8 {[%clk 0:00:12.4]} 43. Qg6+
{[%clk 0:00:25.7]} 43... Kf8 {[%clk 0:00:11.8]} 44. Rh3 {[%clk 0:00:23]} 44...
Rg5 {[%clk 0:00:10.9]} 45. Qh7 {[%clk 0:00:19.1]} 45... Qd2 {[%clk 0:00:09.9]}
46. Rg3 {[%clk 0:00:16.3]} 46... Rxg3 {[%clk 0:00:08.1]} 47. Kxg3 {[%clk
0:00:16.3]} 47... Qxd3+ {[%clk 0:00:08.4]} 48. Kh2 {[%clk 0:00:16.6]} 48... Qd2
{[%clk 0:00:06.5]} 49. Qf5 {[%clk 0:00:14.3]} 49... Qg5 {[%clk 0:00:05.7]} 50.
Qc8+ {[%clk 0:00:12.7]} 50... Kf7 {[%clk 0:00:06.1]} 51. Qe6+ {[%clk 0:00:12]}
51... Kg6 {[%clk 0:00:05.9]} 52. Qxg8 {[%clk 0:00:11.4]} 52... Qf4+ {[%clk
0:00:06]} 53. Kh1 {[%clk 0:00:09.1]} 53... Qc1+ {[%clk 0:00:05.7]} 54. Kh2
{[%clk 0:00:08.8]} 54... Qf4+ {[%clk 0:00:05.8]} 55. Kh1 {[%clk 0:00:08.3]}
55... Qxe4 {[%clk 0:00:06.7]} 56. Qc8 {[%clk 0:00:06.4]} 56... Qb1+ {[%clk
0:00:05.9]} 57. Kh2 {[%clk 0:00:05.2]} 57... Qxb2 {[%clk 0:00:06.4]} 58. Qxc7
{[%clk 0:00:04]} 58... Qe5+ {[%clk 0:00:06.8]} 59. Kh1 {[%clk 0:00:02.1]} 59...
b2 {[%clk 0:00:07.7]} 0-1